bitfinex/quotes_BTCUSD_20220307
["timestamp","ask_amount","ask_price","bid_price","bid_amount"]
[1646640295734,0.25004298,37822.0,37821.0,0.02499]
[1646640296117,0.050008,37822.0,37821.0,0.02499]
[1646640296321,8e-06,37822.0,37821.0,0.02499]
[1646640296730,0.00188762,37823.0,37822.0,5.2e-05]
[1646640297121,0.00188762,37823.0,37822.0,0.37830495]
[1646640297518,0.00188762,37823.0,37822.0,0.59044605]
[1646640297921,0.00188762,37823.0,37822.0,0.61543605]
[1646640298379,0.00188762,37823.0,37822.0,0.025042]
[1646640299367,0.00188762,37823.0,37822.0,0.20810191]
[1646640299764,0.00188762,37823.0,37822.0,0.025042]
[1646640303033,0.3,37835.0,37822.0,0.025042]
[1646640303034,0.264426,37844.0,37823.0,1.2]
[1646640303224,0.264426,37844.0,37828.0,0.0262]
[1646640303225,0.42,37836.0,37828.0,0.0262]
[1646640303435,0.1,37844.0,37831.0,0.15]
[1646640303436,0.92,37843.0,37831.0,0.15]
[1646640303628,0.92,37843.0,37830.0,0.0262]
[1646640303629,0.06608,37842.0,37833.0,0.02499]
[1646640303822,0.06608,37842.0,37834.0,0.0487]
[1646640304019,0.19297095,37840.0,37839.0,0.23465273]
[1646640304225,0.19297095,37840.0,37839.0,0.37465273]
[1646640304420,0.06608,37842.0,37839.0,0.37465273]
[1646640304725,0.06608,37842.0,37839.0,0.23465273]
[1646640305731,0.06608,37842.0,37837.0,0.0487]
[1646640306792,0.06608,37842.0,37838.0,0.21782791]
[1646640308094,0.06608,37842.0,37837.0,0.0487]
[1646640308692,0.06608,37842.0,37839.0,0.02499]
[1646640309207,0.26394828,37841.0,37839.0,0.02499]
[1646640309393,0.05,37841.0,37839.0,0.02499]
[1646640309638,0.05,37841.0,37837.0,0.02380648]
[1646640309824,0.06608,37842.0,37837.0,0.02380648]
[1646640310424,0.06608,37842.0,37837.0,0.23509229]
[1646640310425,0.02648633,37841.0,37837.0,0.23509229]
[1646640310630,0.07648633,37841.0,37839.0,0.00118913]
[1646640310830,0.35,37839.0,37837.0,0.21128581]
[1646640311039,0.35,37839.0,37838.0,0.12694221]
[1646640311228,0.35,37839.0,37838.0,0.60184221]
[1646640311445,0.35,37839.0,37838.0,1.40214221]
[1646640311643,0.35,37839.0,37838.0,0.31504221]
[1646640311833,0.02648633,37841.0,37840.0,0.27702116]
[1646640312038,0.02648633,37841.0,37840.0,0.32572116]
[1646640312429,0.13222233,37841.0,37840.0,1.59222116]
[1646640312644,0.18222233,37841.0,37840.0,1.59222116]
[1646640312828,0.13222233,37841.0,37840.0,1.59222116]
[1646640313028,0.13222233,37841.0,37840.0,1.84222116]
[1646640313230,0.13222233,37841.0,37840.0,1.81846951]
[1646640313484,8.633e-05,37841.0,37840.0,1.83166951]
[1646640315485,8.633e-05,37841.0,37840.0,1.88657296]
[1646640316094,0.55,37843.0,37840.0,1.88657296]
[1646640316273,9.38e-06,37846.0,37845.0,0.8265]
[1646640316477,0.5072,37868.0,37847.0,0.8265]
[1646640316700,0.494,37868.0,37857.0,0.18306821]
[1646640316882,0.4247,37869.0,37858.0,0.3487]
[1646640317143,0.21299682,37868.0,37859.0,0.21944882]
[1646640317339,0.1920609,37868.0,37863.0,0.26990989]
[1646640317744,0.02788763,37866.0,37862.0,0.26425048]
[1646640317941,0.02011944,37864.0,37863.0,0.3]
[1646640318235,0.02011944,37864.0,37862.0,0.0487]
[1646640318435,0.02011944,37864.0,37863.0,0.02382071]
[1646640318749,0.02011944,37864.0,37860.0,0.4]
[1646640318940,0.02011944,37864.0,37861.0,0.0487]
[1646640319337,0.02011944,37864.0,37858.0,0.3262]
[1646640319543,0.17849346,37863.0,37859.0,0.0487]
[1646640319738,0.17849346,37863.0,37857.0,0.2012]
[1646640319955,0.17849346,37863.0,37858.0,0.0487]
[1646640320137,0.22849346,37863.0,37858.0,0.0487]
[1646640320338,0.22849346,37863.0,37855.0,0.0437]
[1646640320339,0.16368672,37861.0,37855.0,0.0437]
[1646640320537,0.02171632,37860.0,37859.0,0.04803353]
[1646640320751,0.21368672,37861.0,37859.0,0.04803353]
[1646640320968,0.21368672,37861.0,37854.0,0.0262]
[1646640320969,0.1924251,37856.0,37854.0,0.0262]
[1646640321175,0.1310481,37856.0,37855.0,0.06730477]
[1646640321390,0.1310481,37856.0,37853.0,1.58820788]
[1646640321391,0.1310481,37856.0,37854.0,0.108]
[1646640321775,0.00021929,37857.0,37854.0,0.008]
[1646640322475,0.066048,37859.0,37854.0,0.008]
[1646640322677,0.05,37858.0,37853.0,0.23207094]
[1646640322882,0.00021929,37857.0,37853.0,0.13207094]
[1646640323272,0.00021929,37857.0,37852.0,0.1]
[1646640323472,0.157638,37853.0,37852.0,0.1487]
[1646640323690,0.157638,37853.0,37852.0,0.07268279]
[1646640324274,0.157638,37853.0,37849.0,0.157079]
[1646640324473,0.05,37852.0,37849.0,0.06604931]
[1646640324737,0.05,37852.0,37845.0,0.00299003]
[1646640324942,0.06607,37851.0,37845.0,0.00299003]
[1646640325135,0.06607,37851.0,37844.0,0.0010982]
[1646640325136,0.1999,37847.0,37844.0,0.0010982]
[1646640325333,0.2499,37847.0,37844.0,0.0010982]
[1646640325533,0.132126,37846.0,37844.0,0.0010982]
[1646640325731,0.2499,37847.0,37844.0,0.0010982]
[1646640325935,0.05,37847.0,37844.0,0.0010982]
[1646640326334,0.26005632,37849.0,37844.0,0.0010982]
[1646640326636,0.315861,37846.0,37844.0,0.0010982]
[1646640329172,0.2498,37846.0,37844.0,0.0010982]
[1646640329573,0.2498,37846.0,37844.0,0.0497982]
[1646640330177,0.2498,37846.0,37845.0,0.16522311]
[1646640330376,0.2498,37846.0,37845.0,0.3487]
[1646640330575,0.2498,37846.0,37845.0,1.149]
[1646640330989,0.2498,37846.0,37845.0,1.1752]
[1646640331476,0.2498,37846.0,37845.0,1.2732]
[1646640331675,0.2498,37846.0,37845.0,1.34588279]
[1646640332125,0.09925621,37846.0,37845.0,1.34588279]
[1646640332340,0.09925621,37846.0,37845.0,1.39588279]
[1646640332826,0.4147,37860.0,37845.0,1.39588279]
[1646640332827,0.4147,37860.0,37852.0,0.01409819]
[1646640333026,0.4147,37860.0,37853.0,0.0487]
[1646640333222,0.4147,37860.0,37853.0,0.56116576]
[1646640333223,0.58105466,37860.0,37853.0,0.56116576]
[1646640333522,0.58105466,37860.0,37852.0,0.23116576]
[1646640333722,0.58105466,37860.0,37853.0,0.0487]
[1646640334140,0.63105466,37860.0,37851.0,0.3]
[1646640334324,0.63105466,37860.0,37852.0,0.0487]
[1646640334523,0.63105466,37860.0,37849.0,0.3]
[1646640334524,0.63105466,37860.0,37853.0,0.0487]
[1646640334741,0.19775866,37854.0,37853.0,0.0487]
[1646640334924,0.19775866,37854.0,37853.0,0.12138279]
[1646640335131,0.24775866,37854.0,37853.0,0.12138279]
[1646640335996,0.19775866,37854.0,37853.0,0.12138279]
[1646640336186,0.06627049,37855.0,37853.0,0.12138279]
[1646640336384,0.06627049,37855.0,37854.0,0.07268279]
[1646640336584,0.00021949,37855.0,37854.0,0.07268279]
[1646640336986,0.4147,37860.0,37854.0,0.07268279]
[1646640337184,0.24184097,37856.0,37853.0,0.0487]
[1646640337393,0.24184097,37856.0,37855.0,0.07268279]
[1646640338189,0.24162148,37856.0,37855.0,0.07268279]
[1646640338387,0.05,37856.0,37855.0,0.07268279]
[1646640338786,0.00021949,37857.0,37855.0,0.07268279]
[1646640338985,0.00021949,37857.0,37856.0,0.07268279]
[1646640339384,0.16847388,37858.0,37856.0,0.07268279]
[1646640339618,0.21869337,37858.0,37852.0,0.52485669]
[1646640340323,0.21869337,37858.0,37853.0,0.0487]
[1646640340517,0.21869337,37858.0,37854.0,0.00252728]
[1646640340721,0.21847388,37858.0,37855.0,0.0487]
[1646640340919,0.02162188,37857.0,37855.0,0.0487]
[1646640341117,0.02162188,37857.0,37856.0,0.07268279]
[1646640341319,0.00021443,37857.0,37856.0,0.07268279]
[1646640341717,0.16847388,37858.0,37856.0,0.07268279]
[1646640341923,0.16847388,37858.0,37855.0,0.0487]
[1646640342120,0.16868831,37858.0,37855.0,0.0487]
[1646640342519,0.16868831,37858.0,37855.0,0.11473128]
[1646640342919,0.16847388,37858.0,37855.0,0.11473128]
[1646640343119,0.21847388,37858.0,37855.0,0.11473128]
[1646640343383,0.21868831,37858.0,37855.0,0.11473128]
[1646640343770,0.21868831,37858.0,37855.0,0.0487]
[1646640344197,0.21847388,37858.0,37855.0,0.0487]
[1646640344571,0.05020936,37858.0,37855.0,0.91503089]
[1646640344774,0.00020936,37858.0,37857.0,0.07268279]
[1646640344973,0.00020936,37858.0,37857.0,0.92168279]
[1646640345382,0.4647,37860.0,37857.0,0.92168279]
[1646640345572,0.00016891,37859.0,37857.0,0.849]
[1646640346188,0.00016891,37859.0,37858.0,0.07268279]
[1646640346372,0.00016891,37859.0,37858.0,0.12138279]
[1646640346672,0.67847312,37860.0,37858.0,0.12138279]
[1646640346872,0.67847312,37860.0,37858.0,0.0487]
[1646640346873,0.67864203,37860.0,37858.0,0.0487]
[1646640347746,0.67847312,37860.0,37858.0,0.0487]
[1646640348155,0.67847312,37860.0,37856.0,1.20129135]
[1646640348350,0.67847312,37860.0,37857.0,0.0529]
[1646640349349,0.67868138,37860.0,37857.0,0.0529]
[1646640349743,0.67868138,37860.0,37858.0,0.0019566]
[1646640350049,0.67868138,37860.0,37859.0,0.2]
[1646640350050,0.00020826,37860.0,37859.0,0.2]
[1646640350255,0.20463365,37865.0,37864.0,0.2]
[1646640350457,0.26747263,37866.0,37864.0,0.2]
[1646640350644,0.06583253,37867.0,37864.0,0.2]
[1646640350878,0.0362,37869.0,37868.0,0.2]
[1646640351081,0.07459128,37866.0,37858.0,0.50098918]
[1646640351493,0.16895602,37865.0,37858.0,0.50098918]
[1646640351680,0.00020826,37864.0,37858.0,0.50098918]
[1646640352294,0.00020826,37864.0,37859.0,0.0529]
[1646640352782,0.07459128,37866.0,37859.0,0.0529]
[1646640352984,0.00020826,37863.0,37859.0,0.0529]
[1646640353786,0.07459128,37866.0,37859.0,0.0529]
[1646640354197,0.00021083,37863.0,37859.0,0.0529]
[1646640355035,0.07459128,37866.0,37859.0,0.0529]
[1646640355240,0.00016911,37863.0,37859.0,0.0529]
[1646640355437,0.21743414,37863.0,37859.0,0.0529]
[1646640355938,0.21743414,37863.0,37858.0,0.5]
[1646640356140,0.3,37862.0,37858.0,0.5]
[1646640356635,0.00016911,37862.0,37858.0,0.5]
[1646640356933,0.16088748,37859.0,37858.0,0.5]
[1646640357536,0.42283684,37859.0,37858.0,0.5]
[1646640358379,0.42283684,37859.0,37858.0,0.4997]
[1646640359073,0.00021989,37860.0,37858.0,0.4997]
[1646640359876,0.21137028,37867.0,37858.0,0.4997]
[1646640360076,0.21137028,37867.0,37859.0,0.0529]
[1646640360077,0.00021988,37861.0,37859.0,0.0529]
[1646640360482,0.00021988,37861.0,37860.0,0.8003]
[1646640360678,0.07241502,37866.0,37860.0,0.8532]
[1646640360875,0.07241502,37866.0,37862.0,0.20642288]
[1646640361075,0.07241502,37866.0,37863.0,0.0529]
[1646640362347,0.07241502,37866.0,37863.0,0.05302376]
[1646640363645,0.07241502,37866.0,37863.0,0.32513645]
[1646640363841,0.07241502,37866.0,37864.0,0.20023252]
[1646640364041,0.07241502,37866.0,37865.0,0.118918]
[1646640364241,0.07241502,37866.0,37865.0,0.21904176]
[1646640364657,0.01,37869.0,37867.0,0.8003]
[1646640364853,0.01,37869.0,37868.0,0.12558279]
[1646640365238,0.01,37869.0,37868.0,0.92588279]
[1646640365873,0.001,37875.0,37869.0,1.2]
[1646640366079,0.001,37875.0,37868.0,0.92588279]
[1646640366080,0.001,37875.0,37871.0,0.01630101]
[1646640366276,0.001,37875.0,37873.0,0.8003]
[1646640366494,0.001,37875.0,37874.0,0.8532]
[1646640366696,0.001,37875.0,37874.0,1.14629242]
[1646640366886,0.001,37875.0,37874.0,0.56661195]
[1646640367077,0.001,37875.0,37874.0,0.27351953]
[1646640367277,0.001,37875.0,37874.0,0.57351953]
[1646640367878,0.001,37875.0,37874.0,1.07381953]
[1646640368280,0.001,37875.0,37874.0,1.37381953]
[1646640368678,0.001,37875.0,37874.0,0.27351953]
[1646640368878,0.001,37875.0,37874.0,1.07381953]
[1646640369765,0.00039286,37875.0,37874.0,1.37381953]
[1646640370174,0.00039286,37875.0,37874.0,1.37446335]
[1646640370480,0.00039286,37875.0,37874.0,0.57416335]
[1646640370771,0.00039286,37875.0,37874.0,0.35354382]
[1646640371673,0.00039286,37875.0,37874.0,0.05366756]
[1646640373579,0.00039286,37875.0,37874.0,0.35366756]
[1646640374211,0.00039286,37875.0,37874.0,0.00132935]
[1646640375183,0.43103441,37875.0,37874.0,0.00132935]
[1646640375781,0.45723441,37875.0,37874.0,0.00132935]
[1646640375982,0.43103441,37875.0,37874.0,0.00132935]
[1646640376384,0.21830196,37875.0,37874.0,0.00132935]
[1646640376787,0.00039286,37875.0,37874.0,0.00132935]
[1646640378637,0.00039286,37875.0,37874.0,0.86762835]
[1646640378826,0.00039286,37875.0,37874.0,0.00132935]
[1646640379026,0.00039286,37875.0,37874.0,0.00132933]
[1646640379431,0.00039286,37875.0,37874.0,0.21422919]
[1646640379827,0.00039286,37875.0,37874.0,0.00132933]
[1646640380431,0.00039286,37875.0,37874.0,0.07401212]
[1646640380629,0.00039286,37875.0,37874.0,0.12691212]
[1646640380882,0.00039286,37875.0,37874.0,0.92721212]
[1646640381484,0.3,37892.0,37874.0,0.92721212]
[1646640381485,0.3262,37892.0,37876.0,0.80078079]
[1646640381685,0.00082103,37891.0,37884.0,0.06598942]
[1646640382700,0.0262,37892.0,37885.0,0.065985]
[1646640382884,0.00020532,37889.0,37885.0,0.19795262]
[1646640383299,0.00020532,37889.0,37886.0,0.131949]
[1646640383884,0.0262,37894.0,37886.0,0.131949]
[1646640384085,0.00019153,37889.0,37886.0,0.40333969]
[1646640384287,0.00019153,37889.0,37885.0,0.26392362]
[1646640384495,0.00019153,37889.0,37885.0,0.31682362]
[1646640385127,0.0262,37896.0,37885.0,0.31682362]
[1646640385128,0.1814409,37896.0,37885.0,0.31682362]
[1646640385342,0.0001915,37889.0,37885.0,0.31682362]
[1646640385527,0.0001915,37889.0,37885.0,0.18486762]
[1646640385926,0.0001915,37889.0,37885.0,0.0529]
[1646640386333,0.2136101,37890.0,37885.0,0.0529]
[1646640386527,0.20388047,37886.0,37885.0,0.0529]
[1646640386740,0.20388047,37886.0,37879.0,0.1279]
[1646640386927,0.20388047,37886.0,37879.0,0.1029]
[1646640387129,0.20388047,37886.0,37879.0,0.0529]
[1646640387339,0.21395661,37885.0,37879.0,0.0529]
[1646640387529,0.20388047,37886.0,37879.0,0.0529]
[1646640387828,0.00019227,37884.0,37879.0,0.0529]
[1646640388028,0.00019227,37884.0,37883.0,0.07268279]
[1646640388243,0.00019227,37884.0,37878.0,0.00012372]
[1646640388483,0.00019227,37884.0,37878.0,0.05293372]
[1646640388675,0.20388047,37886.0,37878.0,0.05293372]
[1646640388875,0.00019228,37883.0,37878.0,0.05293372]
[1646640389687,0.00019228,37883.0,37878.0,0.05108372]
[1646640389878,0.5136101,37890.0,37878.0,0.05120743]
[1646640390082,0.00019228,37882.0,37878.0,0.85134743]
[1646640390275,0.00019228,37882.0,37879.0,0.8503]
[1646640390476,0.00019228,37882.0,37880.0,0.0529]
[1646640390694,0.00019228,37882.0,37880.0,0.11889]
[1646640390975,0.20495028,37891.0,37880.0,0.11889]
[1646640391176,0.20418133,37891.0,37880.0,0.11889]
[1646640391385,0.00019222,37883.0,37880.0,0.11889]
[1646640391875,0.00019222,37883.0,37880.0,0.41889]
[1646640392358,0.18288699,37890.0,37880.0,0.41889]
[1646640392550,0.00019221,37883.0,37882.0,0.21174154]
[1646640392751,0.00019221,37883.0,37882.0,0.51174154]
[1646640392950,0.0007687,37891.0,37883.0,0.01397419]
[1646640393157,0.0007687,37891.0,37884.0,1.11711133]
[1646640393363,0.0007687,37891.0,37888.0,0.28561976]
[1646640393565,0.01,37899.0,37888.0,0.28561976]
[1646640393848,0.01,37899.0,37889.0,0.3]
[1646640393849,0.17802771,37897.0,37889.0,0.3]
[1646640394049,0.17802771,37897.0,37887.0,0.3529]
[1646640394252,0.17802771,37897.0,37887.0,0.0529]
[1646640394850,0.18783423,37889.0,37887.0,0.0529]
[1646640395059,0.18783423,37889.0,37882.0,0.02649143]
[1646640395250,0.239259,37893.0,37882.0,0.07939143]
[1646640395251,0.0262,37893.0,37882.0,0.07939143]
[1646640395451,0.00015047,37894.0,37882.0,0.37939143]
[1646640395652,0.00015047,37894.0,37882.0,0.64816111]
[1646640395895,0.37299999,37900.0,37888.0,1.0124265]
[1646640395896,0.01,37899.0,37888.0,1.0124265]
[1646640396082,0.01,37899.0,37889.0,1.1532]
[1646640396281,0.00020178,37890.0,37889.0,0.55597777]
[1646640396495,0.00020178,37890.0,37889.0,0.32866056]
[1646640396683,0.00020178,37890.0,37889.0,0.12558279]
[1646640397186,0.005,37899.0,37889.0,0.12558279]
[1646640397384,0.00020178,37891.0,37890.0,0.3]
[1646640397685,0.00020178,37891.0,37890.0,0.12558279]
[1646640398293,0.20726259,37895.0,37890.0,0.12558279]
[1646640398484,0.0002011,37892.0,37890.0,0.0529]
[1646640398702,0.0002011,37892.0,37891.0,0.07268279]
[1646640399492,0.20662294,37898.0,37891.0,0.07268279]
[1646640399730,0.00020109,37893.0,37886.0,0.004]
[1646640399929,0.00020109,37893.0,37890.0,0.07268279]
[1646640400129,0.00020109,37893.0,37892.0,0.07268279]
[1646640400742,0.20662294,37898.0,37892.0,0.07268279]
[1646640400930,0.00019595,37894.0,37891.0,0.00148046]
[1646640401931,0.19309279,37897.0,37891.0,0.00148046]
[1646640402131,0.00019624,37894.0,37891.0,0.00148046]
[1646640403138,0.35928706,37897.0,37891.0,0.00148046]
[1646640403378,0.00019624,37894.0,37891.0,0.00148046]
[1646640404393,0.005,37899.0,37893.0,0.8003]
[1646640404589,0.00019108,37894.0,37893.0,0.8265]
[1646640404790,0.00019108,37894.0,37893.0,1.0032]
[1646640404980,0.00019108,37894.0,37893.0,1.00614612]
[1646640405183,0.005,37899.0,37898.0,0.20585278]
[1646640405492,0.25,37918.0,37898.0,0.20585278]
[1646640405493,0.22456028,37915.0,37901.0,0.8003]
[1646640405698,0.21137028,37917.0,37902.0,0.8794]
[1646640405888,0.3,37918.0,37903.0,0.0262]
[1646640406081,0.3,37918.0,37904.0,2.30933694]
[1646640406293,0.3,37918.0,37906.0,0.8003]
[1646640406582,0.21137028,37920.0,37910.0,0.87298279]
[1646640406796,0.21137028,37922.0,37912.0,0.8003]
[1646640406985,0.3,37921.0,37913.0,0.0529]
[1646640407240,0.3,37921.0,37914.0,0.0529]
[1646640407440,0.17830487,37922.0,37914.0,0.0529]
[1646640407644,0.15442554,37921.0,37914.0,0.0529]
[1646640407842,0.45442554,37921.0,37914.0,0.0529]
[1646640408043,0.15442554,37921.0,37914.0,0.0529]
[1646640409442,0.00022097,37919.0,37914.0,0.0529]
[1646640409641,0.00022097,37919.0,37918.0,0.07268279]
[1646640410256,0.1822599,37925.0,37918.0,0.07268279]
[1646640410443,0.00022096,37920.0,37915.0,0.3]
[1646640410644,0.00022096,37920.0,37916.0,0.05]
[1646640410886,0.16833111,37920.0,37914.0,0.0529]
[1646640411483,0.16811015,37920.0,37914.0,0.0529]
[1646640411891,0.00022097,37919.0,37914.0,0.0529]
[1646640412081,0.00022097,37919.0,37918.0,0.07268279]
[1646640412682,0.16811015,37920.0,37918.0,0.07268279]
[1646640412884,0.20050514,37919.0,37914.0,0.0529]
[1646640413083,0.47664133,37919.0,37914.0,0.0529]
[1646640413295,0.47664133,37919.0,37914.0,0.1029]
[1646640413296,0.27613619,37919.0,37914.0,0.1029]
[1646640413482,0.27613619,37919.0,37914.0,0.0529]
[1646640413892,0.0262,37918.0,37914.0,0.0529]
[1646640414097,0.35025292,37919.0,37914.0,0.0529]
[1646640414098,0.30233619,37919.0,37914.0,0.0529]
[1646640414286,0.00021566,37918.0,37909.0,0.71146146]
[1646640414634,0.00021566,37918.0,37909.0,0.65856146]
[1646640414635,0.20602371,37910.0,37909.0,0.65856146]
[1646640414836,0.35602371,37910.0,37909.0,0.65856146]
[1646640415050,0.35602371,37910.0,37909.0,0.65456146]
[1646640415051,0.74891771,37910.0,37909.0,0.65456146]
[1646640415232,1.10981234,37910.0,37909.0,0.65456146]
[1646640416241,0.71691834,37910.0,37909.0,0.65456146]
[1646640416432,1.01691834,37910.0,37909.0,0.65456146]
[1646640416936,0.9560643,37910.0,37909.0,0.65456146]
[1646640420079,0.68222371,37910.0,37909.0,0.65456146]
[1646640420282,0.35602371,37910.0,37909.0,0.65715697]
[1646640420990,0.20602371,37910.0,37909.0,0.65715697]
[1646640421380,0.1,37913.0,37909.0,0.65715697]
[1646640421381,0.00021145,37911.0,37909.0,0.65715697]
[1646640422433,0.1,37918.0,37910.0,0.07268279]
[1646640422633,0.00021145,37912.0,37910.0,0.18719013]
[1646640422846,0.00021145,37912.0,37911.0,0.07268279]
[1646640423038,0.00021145,37912.0,37909.0,0.65715697]
[1646640423632,0.1262,37918.0,37909.0,0.65715697]
[1646640423838,0.00021145,37912.0,37909.0,0.65715697]
[1646640424637,0.00021145,37912.0,37909.0,0.65586454]
[1646640424838,0.20189036,37917.0,37909.0,0.65586454]
[1646640425236,0.00021117,37912.0,37909.0,0.58643454]
[1646640426084,0.20189036,37917.0,37909.0,0.58643454]
[1646640426283,0.00021117,37912.0,37909.0,0.58643454]
[1646640427201,0.20189036,37917.0,37909.0,0.58643454]
[1646640427388,0.00021117,37912.0,37909.0,0.58643454]
[1646640428385,0.20189036,37917.0,37909.0,0.58643454]
[1646640428586,0.00021124,37912.0,37909.0,0.58643454]
[1646640429491,0.00021124,37912.0,37911.0,0.00130091]
[1646640429741,0.00021124,37912.0,37909.0,0.10603323]
[1646640430746,0.20189036,37917.0,37909.0,0.10603323]
[1646640431136,0.00021124,37912.0,37909.0,0.10603323]
[1646640431937,0.20189036,37917.0,37909.0,0.10603323]
[1646640432140,0.00021122,37912.0,37909.0,0.10603323]
[1646640433240,0.20189036,37917.0,37909.0,0.10603323]
[1646640433482,0.00021122,37912.0,37909.0,0.10603323]
[1646640433881,0.00021122,37912.0,37909.0,0.10615684]
[1646640434081,0.20069563,37917.0,37909.0,0.10615684]
[1646640434582,0.01318,37922.0,37909.0,0.23803868]
[1646640434583,0.22455028,37922.0,37909.0,0.23803868]
[1646640434793,0.21137028,37923.0,37910.0,0.0529]
[1646640435195,0.25009113,37922.0,37911.0,0.00130161]
[1646640435382,0.48577486,37922.0,37911.0,0.00130161]
[1646640435597,0.17040053,37920.0,37911.0,0.00130161]
[1646640435796,0.00021122,37918.0,37911.0,0.00130161]
[1646640436183,0.00021122,37918.0,37912.0,0.18904547]
[1646640436586,0.00021122,37918.0,37912.0,0.05]
[1646640436798,0.17040053,37920.0,37912.0,0.05]
[1646640436988,0.17040053,37920.0,37911.0,0.00130161]
[1646640436989,0.00021122,37917.0,37911.0,0.00130161]
[1646640438144,0.40149469,37920.0,37911.0,0.00130161]
[1646640438145,0.3,37919.0,37911.0,0.00130161]
[1646640438343,0.20145541,37912.0,37911.0,0.00130161]
[1646640439156,0.3,37919.0,37911.0,0.00130161]
[1646640439347,0.23109416,37920.0,37911.0,0.00130161]
[1646640439544,0.00021118,37914.0,37911.0,0.00130161]
[1646640440144,0.00021118,37914.0,37913.0,0.00128676]
[1646640440355,0.20611499,37915.0,37913.0,0.00128676]
[1646640440748,0.00021119,37914.0,37913.0,0.00128676]
[1646640441282,0.00021119,37914.0,37913.0,0.22157296]
[1646640441779,0.00084462,37920.0,37913.0,0.22157296]
[1646640441780,0.51137028,37924.0,37916.0,0.06592991]
[1646640441987,0.00084461,37921.0,37916.0,0.06592991]
[1646640442179,0.00084461,37921.0,37915.0,0.18009866]
[1646640442390,0.00084461,37921.0,37913.0,0.22157296]
[1646640442581,0.00084461,37921.0,37917.0,0.07268279]
[1646640442785,0.21137028,37924.0,37920.0,0.07268279]
[1646640442982,0.21137028,37925.0,37914.0,0.065937]
[1646640443182,0.00021119,37919.0,37914.0,0.065937]
[1646640443380,0.00021119,37919.0,37918.0,0.07268279]
[1646640443981,0.70530552,37925.0,37918.0,0.07268279]
[1646640444183,0.00021119,37920.0,37914.0,0.10486156]
[1646640444383,0.00021119,37920.0,37918.0,0.07268279]
[1646640444637,0.00021119,37920.0,37919.0,0.07268279]
[1646640445337,0.15626631,37928.0,37919.0,1.19975087]
[1646640445338,0.21137028,37928.0,37919.0,1.19975087]
[1646640445538,0.36989798,37935.0,37924.0,0.04220576]
[1646640445539,0.27739284,37935.0,37924.0,0.04220576]
[1646640445734,0.31705541,37940.0,37927.0,0.8265]
[1646640445943,0.01318,37944.0,37930.0,0.0262]
[1646640446133,0.4149,37954.0,37928.0,1.50903694]
[1646640446134,0.01316,37947.0,37932.0,0.8003]
[1646640446337,0.3325,37954.0,37939.0,0.26769671]
[1646640446338,0.01316,37953.0,37939.0,0.26769671]
[1646640446545,0.21760303,37950.0,37940.0,0.35288373]
[1646640446734,0.11306,37954.0,37940.0,0.0529]
[1646640446735,0.3,37953.0,37940.0,0.0529]
[1646640446950,0.0999,37954.0,37941.0,0.3]
[1646640447137,0.0999,37954.0,37942.0,0.0529]
[1646640447338,0.0999,37954.0,37947.0,0.36757257]
[1646640447534,0.0999,37954.0,37948.0,0.3]
[1646640447749,0.0999,37954.0,37949.0,0.0529]
[1646640447944,0.0999,37954.0,37953.0,0.07268279]
[1646640448137,0.0999,37954.0,37953.0,0.12558279]
[1646640449204,0.0999,37954.0,37953.0,0.17558279]
[1646640449386,0.00016693,37955.0,37953.0,0.17558279]
[1646640449589,0.00016693,37955.0,37954.0,0.07268279]
[1646640449992,0.01,37959.0,37954.0,0.12268279]
[1646640450189,0.01,37959.0,37954.0,0.05]
[1646640450390,0.0002217,37956.0,37953.0,0.1029]
[1646640450606,0.0002217,37956.0,37955.0,0.13855979]
[1646640450792,0.0002217,37956.0,37955.0,0.18855979]
[1646640451093,0.0002217,37956.0,37955.0,0.66013955]
[1646640451304,0.01,37959.0,37955.0,0.66013955]
[1646640451503,0.01,37959.0,37955.0,0.41846347]
[1646640451504,0.0002217,37957.0,37955.0,0.41846347]
[1646640451695,0.0002217,37957.0,37956.0,0.07268279]
[1646640451993,0.0002217,37957.0,37956.0,0.12558279]
[1646640452446,0.01,37959.0,37956.0,0.12558279]
[1646640452656,0.01,37959.0,37956.0,0.0529]
[1646640452947,0.00016693,37958.0,37956.0,0.0529]
[1646640453160,0.00016693,37958.0,37957.0,0.07268279]
[1646640453546,0.00016693,37958.0,37957.0,0.05]
[1646640453746,0.01,37959.0,37957.0,0.55063208]
[1646640453947,0.01016693,37959.0,37957.0,0.5]
[1646640454163,0.01016693,37959.0,37958.0,0.05]
[1646640454347,0.01016693,37959.0,37957.0,0.5]
[1646640454550,0.392894,37958.0,37954.0,0.0227]
[1646640454747,0.78260465,37956.0,37954.0,0.0227]
[1646640455067,0.78260465,37956.0,37945.0,0.5]
[1646640455068,0.22655711,37946.0,37945.0,0.5]
[1646640455370,0.55275711,37946.0,37931.0,0.80257211]
[1646640455571,0.55275711,37946.0,37931.0,0.32107211]
[1646640455880,0.52655711,37946.0,37931.0,0.32107211]
[1646640456081,0.52655711,37946.0,37931.0,0.1202]
[1646640456283,0.3,37946.0,37935.0,0.1594224]
[1646640456483,0.2,37951.0,37935.0,0.9597224]
[1646640456687,0.2,37951.0,37936.0,0.01609311]
[1646640456898,0.00088745,37952.0,37937.0,2.33553694]
[1646640457099,0.00088745,37952.0,37940.0,0.01291239]
[1646640457296,0.5710768,37957.0,37947.0,0.16365821]
[1646640457485,0.3369608,37957.0,37947.0,0.35618184]
[1646640457683,0.00088755,37952.0,37947.0,0.35618184]
[1646640457886,0.00088755,37952.0,37947.0,0.42425937]
[1646640458095,0.00088755,37952.0,37951.0,0.07268279]
[1646640458485,0.01,37959.0,37947.0,0.35618184]
[1646640458885,0.20301077,37958.0,37947.0,0.35618184]
[1646640459299,0.065885,37957.0,37947.0,0.35618184]
[1646640459484,0.20301077,37958.0,37947.0,0.35618184]
[1646640459737,0.01,37959.0,37948.0,0.3]
[1646640459933,0.01,37959.0,37950.0,0.15]
[1646640460133,0.00083187,37960.0,37959.0,0.01979201]
[1646640460933,0.42500912,37966.0,37959.0,0.01979201]
[1646640461143,0.16127912,37966.0,37959.0,0.01979201]
[1646640461341,0.01,37969.0,37959.0,0.01979201]
[1646640461736,0.01,37969.0,37959.0,0.06979201]
[1646640461935,0.20478965,37968.0,37959.0,0.06979201]
[1646640462234,0.01,37969.0,37959.0,0.06979201]
[1646640462235,0.17274028,37969.0,37959.0,0.06979201]
[1646640462636,0.17274028,37969.0,37959.0,0.01979201]
[1646640462637,0.18877474,37963.0,37959.0,0.01979201]